bitfinex/quotes_SOLUSD_20260114
["timestamp","ask_amount","ask_price","bid_price","bid_amount"]
[1768410642883,10.89810591,147.23,147.18,0.72065826]
[1768410644577,12.4,147.24,147.2,0.72065826]
[1768410644578,19.19171657,147.24,147.2,0.72065826]
[1768410645169,12.4,147.24,147.21,0.72065826]
[1768410645373,7.50959009,147.25,147.21,0.72065826]
[1768410645576,12.4,147.24,147.21,0.72065826]
[1768410645797,6.79090495,147.26,147.21,0.72065826]
[1768410646085,16.9931008,147.25,147.21,0.72065826]
[1768410646666,6.7916327,147.24,147.21,0.72065826]
[1768410646867,23.78437468,147.25,147.21,0.72065826]
[1768410647978,0.23105709,147.24,147.19,4.60034428]
[1768410648175,0.23105709,147.24,147.2,0.72065826]
[1768410648361,4.58827722,147.23,147.18,0.72065826]
[1768410648562,7.50078683,147.23,147.19,0.72065826]
[1768410654107,0.7085912,147.23,147.19,0.72065826]
[1768410654893,7.50077638,147.23,147.19,0.72065826]
[1768410656007,0.7085912,147.23,147.2,0.69665118]
[1768410656193,7.47851872,147.24,147.2,0.69665118]
[1768410656496,0.2573975,147.23,147.2,0.69665118]
[1768410657704,7.47851872,147.24,147.2,0.69665118]
[1768410657900,0.4573975,147.28,147.23,0.69665118]
[1768410658106,7.24745605,147.28,147.24,0.69665118]
[1768410658683,0.2,147.28,147.24,0.69665118]
[1768410658926,0.2,147.28,147.25,0.69665118]
[1768410659411,0.2,147.28,147.26,0.69665118]
[1768410659584,0.2,147.28,147.24,4.5763372]
[1768410659786,0.2,147.28,147.25,0.69665118]
[1768410660678,0.2,147.28,147.25,7.48780473]
[1768410660875,0.2,147.28,147.26,0.69665118]
[1768410662108,19.62589403,147.31,147.26,0.69665118]
[1768410662313,19.62589403,147.31,147.27,0.69665118]
[1768410662484,3.87968602,147.29,147.24,0.69665118]
[1768410662808,4.14133469,147.29,147.24,0.69665118]
[1768410663206,3.87968602,147.28,147.24,0.69665118]
[1768410663784,4.14133469,147.29,147.24,0.69665118]
[1768410663984,0.26164867,147.29,147.25,0.69665118]
[1768410664214,4.14133469,147.29,147.25,0.69665118]
[1768410665009,3.87968602,147.29,147.25,0.69665118]
[1768410665393,4.14133469,147.28,147.24,0.69665118]
[1768410666097,4.14550126,147.26,147.22,0.69665118]
[1768410666491,0.26581524,147.26,147.22,0.69665118]
[1768410668418,7.05652903,147.26,147.22,0.69665118]
[1768410668994,7.04782172,147.27,147.22,0.69665118]
[1768410669203,10.92750774,147.27,147.22,0.69665118]
[1768410669518,4.56220021,147.26,147.22,0.69665118]
[1768410670025,0.67830553,147.24,147.19,0.69665118]
[1768410670313,4.14550126,147.23,147.19,0.69665118]
[1768410670615,0.26581524,147.23,147.19,0.69665118]
[1768410671196,3.87968602,147.24,147.2,0.69665118]
[1768410671393,7.47799963,147.25,147.21,0.69665118]
[1768410671597,11.35768565,147.25,147.21,0.69665118]
[1768410672126,3.87968602,147.25,147.21,0.69665118]
[1768410672691,10.6706025,147.26,147.21,0.69665118]
[1768410673299,7.4763064,147.29,147.23,0.69665118]
[1768410673499,11.35599242,147.29,147.25,0.69665118]
[1768410673941,12.38,147.3,147.26,0.69665118]
[1768410674427,0.2,147.31,147.27,0.69665118]
[1768410676425,12.38,147.33,147.3,0.69665118]
[1768410676720,7.24228464,147.35,147.3,0.69665118]
[1768410676925,6.78688714,147.35,147.3,0.69665118]
[1768410677108,12.83768847,147.36,147.3,0.69665118]
[1768410677312,2.47635883,147.33,147.3,0.69665118]
[1768410677526,2.47635883,147.34,147.3,0.69665118]
[1768410677729,2.47635883,147.33,147.28,7.48632143]
[1768410677928,2.47635883,147.33,147.28,0.69665118]
[1768410677929,2.47635883,147.32,147.28,0.69665118]
[1768410678131,3.15636204,147.33,147.28,7.48637203]
[1768410678323,3.15636204,147.33,147.29,0.69665118]
[1768410679043,0.68000321,147.33,147.29,0.69665118]
[1768410679220,2.47635883,147.32,147.29,0.69665118]
[1768410679414,3.15636204,147.33,147.29,0.69665118]
[1768410680237,3.15636204,147.33,147.27,9.26649028]
[1768410680442,9.9439579,147.33,147.28,0.71899801]
[1768410680637,7.46759907,147.33,147.28,0.71899801]
[1768410680954,2.47635883,147.32,147.28,0.71899801]
[1768410681132,2.94065027,147.3,147.26,6.79064504]
[1768410681341,0.46429144,147.3,147.26,0.71899801]
[1768410681642,0.46429144,147.3,147.24,0.71899801]
[1768410681843,0.46640542,147.28,147.24,0.71899801]
[1768410682347,0.46640542,147.28,147.24,7.51059416]
[1768410685142,24.46333507,147.32,147.25,0.71899801]
[1768410685340,15.29437004,147.31,147.25,0.71899801]
[1768410686245,22.0827931,147.31,147.26,0.71899801]
[1768410687336,2.91437004,147.32,147.27,0.71899801]
[1768410687657,2.47635883,147.34,147.29,0.71899801]
[1768410687952,0.43801121,147.35,147.29,0.71899801]
[1768410688151,2.47635883,147.33,147.29,0.71899801]
[1768410689251,0.70170662,147.34,147.29,7.50828481]
[1768410689546,2.47635883,147.33,147.29,7.50828481]
[1768410689857,2.47635883,147.33,147.29,0.71899801]
[1768410690236,0.70170662,147.34,147.29,7.50825302]
[1768410690417,2.47635883,147.33,147.29,7.50825302]
[1768410690621,3.17806545,147.34,147.3,0.71899801]
[1768410690935,7.22472626,147.35,147.3,7.50772374]
[1768410691128,9.70106763,147.35,147.31,0.71899801]
[1768410691325,7.2247088,147.35,147.31,0.71899801]
[1768410691554,3.17806545,147.34,147.29,7.50815325]
[1768410691924,3.17806545,147.34,147.3,6.78883312]
[1768410692124,0.70170662,147.34,147.3,7.50783113]
[1768410692450,3.17806545,147.34,147.3,7.50783113]
[1768410692648,3.17806545,147.34,147.3,0.71899801]
[1768410695049,0.70170662,147.34,147.3,0.71899801]
[1768410695248,3.17806545,147.34,147.3,0.71899801]
[1768410696125,3.17806545,147.34,147.3,7.50774332]
[1768410696334,3.17806545,147.34,147.3,0.71899801]
[1768410696851,3.17806545,147.34,147.3,7.50769601]
[1768410697518,0.70170662,147.34,147.3,7.50769601]
[1768410697720,19.87067296,147.36,147.31,0.71899801]
[1768410697925,22.34703179,147.36,147.31,0.65899803]
[1768410698441,2.97377002,147.35,147.31,0.65899803]
[1768410698627,19.16630275,147.36,147.28,6.78958142]
[1768410698628,2.97581891,147.33,147.28,6.78958142]
[1768410699337,2.47635883,147.35,147.29,2.47635883]
[1768410699938,2.47635883,147.35,147.31,0.71899801]
[1768410701724,2.47635883,147.34,147.31,0.71899801]
[1768410702228,2.47635883,147.32,147.26,0.71899801]
[1768410702432,2.47635883,147.31,147.27,0.71899801]
[1768410703427,2.47635883,147.31,147.27,7.50922398]
[1768410704053,3.18072904,147.32,147.27,7.50922398]
[1768410704949,9.96879084,147.32,147.27,7.50922398]
[1768410705346,9.96879084,147.32,147.27,0.71899801]
[1768410705649,2.47635883,147.31,147.27,0.71899801]
[1768410706932,2.47635883,147.31,147.27,7.50914362]
[1768410707352,7.49243201,147.32,147.27,7.50914362]
[1768410707539,2.47635883,147.31,147.27,7.50914362]
[1768410707844,7.49243201,147.32,147.28,0.71899801]
[1768410707845,3.18072904,147.32,147.28,0.71899801]
[1768410708053,7.49196558,147.33,147.28,0.71899801]
[1768410708352,2.97377002,147.32,147.28,0.71899801]
[1768410709132,0.49741119,147.32,147.28,7.50840187]
[1768410709326,0.49741119,147.32,147.25,0.71899801]
[1768410709327,0.49946008,147.29,147.25,0.71899801]
[1768410709547,2.47635883,147.29,147.26,0.71899801]
[1768410711041,2.47635883,147.29,147.26,7.50962252]
[1768410711853,2.97377002,147.3,147.26,7.50962252]
[1768410712555,2.97377002,147.3,147.26,0.71899801]
[1768410712758,9.76266231,147.3,147.26,0.71899801]
[1768410713058,7.28630348,147.3,147.26,0.71899801]
[1768410713244,2.47635883,147.29,147.26,0.71899801]
[1768410713866,2.47635883,147.28,147.26,0.71899801]
[1768410716052,2.47635883,147.28,147.25,6.79098964]
[1768410716261,2.47635883,147.27,147.24,7.47318167]
[1768410716953,2.98201789,147.28,147.24,7.47318167]
[1768410718873,2.47635883,147.27,147.24,7.47318167]
[1768410719566,2.98201789,147.28,147.25,0.68173988]
[1768410719861,2.98201789,147.28,147.24,6.79144179]
[1768410719862,2.47635883,147.27,147.24,6.79144179]
[1768410720161,0.50565906,147.28,147.24,7.47335677]
[1768410720357,2.47635883,147.27,147.24,7.47335677]
[1768410721565,2.98201789,147.28,147.24,7.47335677]
[1768410722743,2.47635883,147.29,147.25,0.68173988]
[1768410723648,2.47635883,147.28,147.26,0.68173988]
[1768410724156,0.69603903,147.3,147.26,0.68173988]
[1768410724363,2.47635883,147.28,147.26,0.68173988]
[1768410725448,2.47635883,147.27,147.24,7.47326634]
[1768410725647,2.98390265,147.27,147.22,7.47396214]
[1768410725956,6.78937068,147.29,147.2,6.79320516]
[1768410725957,0.51120156,147.22,147.2,6.79320516]
[1768410726156,2.47635883,147.23,147.19,7.47539076]
[1768410726765,2.47635883,147.21,147.17,0.68173988]
[1768410726950,2.47635883,147.2,147.17,0.68173988]
[1768410727150,2.47635883,147.21,147.17,0.68173988]
[1768410727363,2.47635883,147.21,147.17,7.47644662]
[1768410727572,2.47635883,147.21,147.18,0.68173988]
[1768410727871,0.50565906,147.23,147.18,0.68173988]
[1768410728052,2.47635883,147.2,147.18,0.68173988]
[1768410728378,2.47635883,147.19,147.16,7.47692131]
[1768410728561,2.47635883,147.18,147.16,7.47692131]
[1768410728869,2.47635883,147.18,147.15,7.47745765]
[1768410729250,2.47635883,147.21,147.14,0.68173988]
[1768410729458,2.47635883,147.16,147.13,6.79660976]
[1768410729873,6.7940986,147.19,147.14,6.7960794]
[1768410730042,2.47635883,147.17,147.14,6.7960794]
[1768410731360,2.44635878,147.17,147.14,6.7960794]
[1768410732053,2.92201781,147.17,147.14,6.7960794]
[1768410732271,0.50565906,147.17,147.13,0.68173988]
[1768410732469,0.50565906,147.17,147.13,7.47836142]
[1768410732679,2.98201789,147.17,147.13,7.47836142]
[1768410734376,0.50565906,147.17,147.13,7.47836142]
[1768410734589,0.69603903,147.23,147.15,0.68173988]
[1768410734893,2.47635883,147.2,147.15,0.68173988]
[1768410736577,2.47635883,147.2,147.16,6.79532481]
[1768410736779,2.47635883,147.2,147.16,7.47706469]
[1768410736975,2.47635883,147.2,147.17,0.68173988]
[1768410737182,3.17049406,147.21,147.17,0.68173988]
[1768410738265,0.69226932,147.19,147.15,7.47738452]
[1768410738472,3.16862815,147.19,147.15,7.47738452]
[1768410738782,0.69226932,147.19,147.15,7.47738452]
[1768410738988,2.47635883,147.18,147.15,7.47738452]
[1768410739470,3.87692961,147.18,147.15,7.47738452]
[1768410740388,4.56737015,147.17,147.13,7.50912808]
[1768410741501,3.87692961,147.16,147.13,7.50912808]
[1768410741668,4.38813117,147.16,147.13,6.7964352]
[1768410743789,0.51120156,147.16,147.13,7.50912808]
[1768410744085,4.59458309,147.17,147.13,7.50912808]
[1768410744275,0.71765348,147.17,147.13,7.50912808]
[1768410744465,4.59458309,147.17,147.13,7.50912808]
[1768410747798,0.71765348,147.17,147.13,7.50912808]
[1768410747995,4.59458309,147.17,147.13,7.50912808]
[1768410749399,4.59458309,147.17,147.13,0.71269288]
[1768410749583,3.87692961,147.16,147.13,0.71269288]
[1768410749904,4.59458309,147.16,147.12,7.50966414]
[1768410750781,11.38963623,147.17,147.13,0.71269288]
[1768410753081,3.87692961,147.16,147.13,0.71269288]
[1768410754292,11.38963623,147.17,147.13,0.71269288]
[1768410754490,4.59224916,147.14,147.11,0.2]
[1768410754692,4.36350095,147.13,147.11,0.2]
[1768410754882,4.59458309,147.14,147.11,0.2]
[1768410755087,0.48426075,147.13,147.09,0.71269288]
[1768410755288,4.36119036,147.13,147.09,7.51125122]
[1768410755683,0.48426075,147.13,147.09,7.51125122]
[1768410755878,4.36119036,147.13,147.09,7.51125122]
[1768410756086,0.48426075,147.13,147.09,7.51125122]
[1768410756499,0.48426075,147.13,147.1,0.71269288]
[1768410757804,0.48426075,147.13,147.1,7.51073444]
[1768410758396,11.3912349,147.14,147.1,0.71269288]
[1768410758899,11.3912349,147.14,147.11,0.71269288]
[1768410759092,0.71765348,147.14,147.11,0.71269288]
[1768410759604,11.39041908,147.15,147.11,0.71269288]
[1768410759782,7.51348947,147.15,147.11,0.71269288]
[1768410759980,10.6727656,147.15,147.11,0.71269288]
[1768410760305,0.48426075,147.14,147.11,0.71269288]
[1768410761307,12.4,147.16,147.12,0.71269288]
[1768410761898,0.71765348,147.17,147.13,6.79671039]
[1768410762099,7.51267487,147.17,147.13,0.71269288]
[1768410762406,4.36119036,147.2,147.14,0.71269288]
[1768410762579,19.91020883,147.22,147.16,0.71269288]
[1768410762904,7.27654074,147.23,147.19,0.71269288]
[1768410763282,7.50946099,147.24,147.2,0.71269288]
[1768410763485,16.27692961,147.25,147.2,0.71269288]
[1768410763811,12.4,147.25,147.21,0.71269288]
[1768410764111,12.4,147.25,147.22,0.71269288]
[1768410764289,10.66734346,147.27,147.22,0.71269288]
[1768410764497,0.48657134,147.25,147.21,0.71269288]
[1768410765091,7.50806733,147.27,147.22,0.71269288]
[1768410765295,7.50806733,147.27,147.23,0.71269288]
[1768410765599,12.4,147.29,147.24,0.71269288]
[1768410765600,13.11765348,147.29,147.24,0.71269288]
[1768410765786,13.11765348,147.29,147.25,0.71269288]
[1768410765991,6.78896383,147.3,147.26,0.71269288]
[1768410766509,7.27322458,147.3,147.26,0.71269288]
[1768410767504,0.48426075,147.3,147.26,0.71269288]
[1768410767802,11.15031764,147.3,147.26,0.71269288]
[1768410769914,0.48426075,147.3,147.26,0.71269288]
[1768410770905,7.27315716,147.3,147.26,0.71269288]
[1768410772200,0.7079499,147.27,147.24,0.70485688]
[1768410772384,4.5870638,147.28,147.24,0.70485688]
[1768410772813,0.71013419,147.28,147.24,0.70485688]
[1768410773302,0.49170485,147.29,147.25,0.70485688]
[1768410774004,10.66612616,147.3,147.25,0.70485688]
[1768410774393,11.15783101,147.3,147.26,0.70485688]
[1768410775901,7.2809014,147.3,147.26,0.70485688]
[1768410776110,11.15783101,147.3,147.26,0.70485688]
[1768410776831,6.78919655,147.3,147.26,0.70485688]
[1768410776992,0.49170485,147.3,147.26,7.49550058]
[1768410777617,7.28061506,147.3,147.26,7.49550058]
[1768410777797,11.15754467,147.3,147.26,7.49550058]
[1768410778306,11.15754467,147.3,147.26,0.70485688]
[1768410778514,23.75563764,147.31,147.27,0.70485688]
[1768410778819,19.87870803,147.31,147.27,0.70485688]
[1768410779318,23.75563764,147.31,147.27,0.70485688]
[1768410780117,4.36863446,147.3,147.25,7.49591166]
[1768410780324,4.36863446,147.3,147.25,0.70485688]
[1768410780527,4.36863446,147.3,147.26,0.70485688]
[1768410781298,11.15761832,147.3,147.26,0.70485688]
[1768410783030,7.28068871,147.3,147.26,7.49555109]
[1768410783246,0.49170485,147.3,147.26,7.49555109]
[1768410783541,23.75587154,147.31,147.27,0.70485688]
[1768410783715,19.87894193,147.31,147.27,0.70485688]
[1768410784816,23.75587154,147.31,147.27,0.70485688]
[1768410785240,12.38,147.31,147.28,0.70485688]
[1768410785699,19.16843694,147.31,147.28,0.70485688]
[1768410786103,0.4938673,147.3,147.25,0.70485688]
[1768410786514,0.70580907,147.29,147.25,0.70485688]
[1768410787117,7.4952435,147.29,147.25,0.70485688]
[1768410787512,6.78943443,147.29,147.26,0.70485688]
[1768410787926,11.157658,147.3,147.26,0.70485688]
[1768410788828,17.1670638,147.32,147.27,0.70485688]
[1768410789332,13.29013419,147.32,147.28,0.70485688]
[1768410790012,20.07816417,147.32,147.28,0.70485688]
[1768410790423,23.95509378,147.32,147.28,0.70485688]
[1768410791246,0.7079499,147.3,147.27,0.70485688]
[1768410791619,0.4938673,147.29,147.24,4.58178649]
[1768410791826,4.58273868,147.28,147.24,7.49628948]
[1768410792034,0.70580907,147.28,147.24,7.49628948]
[1768410792236,12.38,147.3,147.26,0.70485688]
[1768410792736,12.38,147.3,147.27,0.70485688]
[1768410793819,12.38,147.3,147.28,0.70485688]
[1768410794147,0.7079499,147.29,147.25,0.70485688]
[1768410795638,0.7079499,147.29,147.25,7.4960088]
[1768410795945,11.15769569,147.3,147.26,0.70485688]
[1768410796137,13.09013419,147.31,147.26,0.70485688]
[1768410797243,13.09013419,147.31,147.27,0.70485688]
[1768410797645,0.71013419,147.31,147.27,0.70485688]
[1768410798432,7.49866548,147.31,147.27,0.70485688]
[1768410799032,0.7079499,147.29,147.26,0.70485688]
[1768410799233,11.37610672,147.3,147.26,0.70485688]
[1768410799649,7.49917711,147.3,147.26,0.70485688]
[1768410799947,11.37610672,147.3,147.26,0.70485688]
[1768410800440,7.49917711,147.3,147.26,0.70485688]
[1768410800857,11.37610672,147.3,147.26,0.70485688]
[1768410801332,9.97654029,147.3,147.26,0.70485688]
[1768410801835,7.49917711,147.3,147.26,0.70485688]
[1768410802040,7.49917711,147.3,147.26,7.49551085]
[1768410804144,0.71013419,147.3,147.27,0.71139168]
[1768410804739,12.38,147.31,147.27,0.71139168]
[1768410804940,12.38,147.31,147.28,0.71139168]
[1768410805336,13.09481413,147.31,147.28,0.71139168]
[1768410805537,19.88323203,147.31,147.27,0.71139168]
[1768410806440,19.88323203,147.31,147.27,7.5015944]
[1768410806942,22.36291888,147.31,147.27,7.5015944]
[1768410807343,15.57450098,147.31,147.27,7.5015944]
[1768410807843,12.38,147.31,147.28,0.71139168]
[1768410808950,12.38,147.31,147.28,7.50114346]
[1768410809147,0.2,147.32,147.29,0.71139168]
[1768410811160,0.2,147.32,147.31,0.71139168]
[1768410811361,0.2,147.32,147.3,7.50025793]
[1768410811545,0.2,147.32,147.31,0.71139168]
[1768410812042,0.2,147.32,147.3,7.50025793]
[1768410813562,0.0058701,147.32,147.3,7.50025793]
[1768410814983,20.64218191,147.46,147.32,0.71139168]
[1768410814984,0.7171378,147.38,147.32,0.71139168]
[1768410815156,0.48477128,147.37,147.33,7.49887555]
[1768410815653,12.38,147.38,147.34,0.71139168]
[1768410815966,3.19217731,147.38,147.34,0.71139168]
[1768410816156,2.96443489,147.37,147.33,7.49887555]
[1768410816363,6.78509708,147.39,147.34,0.71139168]
[1768410816555,2.47736318,147.37,147.34,0.71139168]
[1768410816750,6.78509708,147.39,147.34,0.71139168]
[1768410817062,2.47736318,147.37,147.34,0.71139168]
[1768410817241,2.47736318,147.37,147.32,7.49926248]
[1768410817449,2.47736318,147.37,147.33,7.49883933]
[1768410817644,9.26286062,147.38,147.33,0.71139168]
[1768410817848,2.47736318,147.37,147.33,0.71139168]
[1768410818261,6.78488604,147.39,147.34,0.71139168]
[1768410818574,19.01069434,147.4,147.34,0.71139168]
[1768410818956,0.099,147.39,147.34,0.71139168]
[1768410819263,0.099,147.39,147.34,7.4984084]
[1768410819563,2.57636318,147.39,147.35,0.71139168]
[1768410821268,2.47736318,147.39,147.36,0.71139168]
[1768410822374,2.57636318,147.39,147.36,0.71139168]
[1768410822561,2.47736318,147.39,147.36,0.71139168]
[1768410822976,2.47736318,147.39,147.35,7.49755504]
[1768410823476,15.91359711,147.4,147.36,0.71139168]
[1768410823767,2.47736318,147.38,147.35,0.71139168]
[1768410824271,2.47736318,147.38,147.34,0.71139168]
[1768410824668,2.57636318,147.38,147.34,0.71139168]
[1768410825463,2.57636318,147.38,147.34,7.49839676]
[1768410827061,0.099,147.38,147.35,0.71139168]
[1768410828377,9.36156555,147.38,147.35,0.71139168]
[1768410828676,2.47736318,147.36,147.33,6.7873853]
[1768410828979,2.47736318,147.37,147.33,0.71139168]
[1768410829181,2.47736318,147.37,147.33,7.49870203]
[1768410829359,9.26256555,147.38,147.33,7.49870203]
[1768410829561,15.91359711,147.4,147.36,0.71139168]
[1768410829767,18.39096029,147.4,147.36,0.71139168]
[1768410829982,25.17527189,147.4,147.36,0.71139168]
[1768410830179,22.69790871,147.4,147.36,0.71139168]
[1768410830484,2.47736318,147.39,147.36,0.71139168]
[1768410832185,9.36109307,147.39,147.35,7.48854303]
[1768410832370,2.57636318,147.39,147.35,7.48854303]
[1768410832882,18.80851917,147.4,147.36,0.70238885]
[1768410833086,3.95115599,147.4,147.36,0.70238885]
[1768410833272,0.2,147.41,147.37,0.70238885]
[1768410834574,0.2,147.41,147.37,7.48793118]
[1768410835073,0.2,147.41,147.38,0.70238885]
[1768410835468,6.78303176,147.43,147.39,0.70238885]
[1768410835780,0.2,147.45,147.41,3.17975203]
[1768410836166,0.2,147.45,147.41,7.48597165]
[1768410836486,0.2,147.46,147.42,3.17975203]
[1768410836787,0.2,147.46,147.42,0.64238885]
[1768410836972,0.2,147.46,147.42,3.11975203]
[1768410837163,12.44,147.47,147.42,3.11975203]
[1768410837364,12.38,147.47,147.43,2.47736318]
[1768410837560,12.38,147.47,147.43,2.41736318]
[1768410837783,0.5613367,147.48,147.42,2.47736318]
[1768410837979,7.34201379,147.48,147.41,23.74308351]
[1768410838176,7.34201379,147.48,147.44,2.47736318]
[1768410838562,7.34201379,147.48,147.44,3.17975203]
[1768410838885,7.40201379,147.48,147.44,3.17975203]
[1768410839069,7.40201379,147.48,147.44,0.70238885]
[1768410840490,7.40201379,147.48,147.43,28.27888804]
[1768410840491,0.06,147.47,147.43,28.27888804]
[1768410840666,9.81937697,147.48,147.43,30.75625122]
[1768410840867,7.34201379,147.48,147.43,30.75625122]
[1768410841069,7.34201379,147.48,147.44,0.70238885]
[1768410841479,2.47736318,147.47,147.41,0.70238885]
[1768410841771,7.34201379,147.48,147.43,0.70238885]
[1768410841970,9.81937697,147.48,147.43,7.48517237]
[1768410842176,22.19937697,147.48,147.43,0.70238885]
[1768410842597,22.19937697,147.48,147.45,0.70238885]
[1768410842598,12.9413367,147.48,147.45,0.70238885]
[1768410842771,12.9413367,147.48,147.44,6.7823837]
[1768410842971,12.9413367,147.48,147.44,7.48477255]
[1768410843682,0.1,147.49,147.47,0.70238885]
[1768410844066,14.22916551,147.52,147.47,0.70238885]
[1768410844772,2.47736318,147.51,147.47,0.70238885]
[1768410845090,2.47736318,147.51,147.47,7.48337218]
[1768410845669,14.2290429,147.52,147.47,7.48337218]
[1768410846292,2.47736318,147.5,147.44,19.43341309]
[1768410846476,2.47736318,147.5,147.46,0.70238885]
[1768410846793,2.47736318,147.5,147.46,7.48376227]
[1768410847388,6.77923272,147.51,147.46,7.48376227]
[1768410847696,2.47736318,147.48,147.44,0.70238885]
[1768410848091,2.47736318,147.47,147.44,7.4847321]
[1768410848294,6.780352,147.49,147.44,7.4847321]
[1768410848487,6.780352,147.49,147.45,0.70238885]
[1768410848488,2.47736318,147.49,147.45,0.70238885]
[1768410848692,14.85736318,147.5,147.45,0.70238885]
[1768410848895,12.38,147.5,147.46,0.70238885]
[1768410849078,21.63705591,147.5,147.46,0.70238885]
[1768410849394,21.63705591,147.5,147.44,7.4847321]
[1768410849577,2.47736318,147.48,147.44,7.4847321]
[1768410849977,2.47736318,147.49,147.45,0.70238885]
[1768410850373,2.47736318,147.49,147.45,7.48426067]
[1768410850998,19.15992028,147.5,147.45,7.48426067]
[1768410851201,2.47736318,147.49,147.45,7.48426067]
[1768410852199,19.15992028,147.5,147.45,7.48426067]
[1768410852500,2.47736318,147.49,147.45,7.48426067]
[1768410853299,4.97275947,147.52,147.49,0.70238885]
[1768410853499,0.1,147.53,147.49,0.70238885]
[1768410853804,6.87831693,147.53,147.49,0.70238885]
[1768410854111,9.35569197,147.53,147.49,0.70238885]
[1768410854986,2.47736318,147.52,147.47,0.70238885]
[1768410855299,21.61656459,147.51,147.46,7.48380732]
[1768410855797,14.83736318,147.51,147.46,7.48380244]
[1768410856499,14.83736318,147.51,147.46,0.70238885]
[1768410856690,2.47736318,147.49,147.45,7.48420726]
[1768410856891,12.36,147.51,147.45,7.48420726]
[1768410857088,2.47736318,147.49,147.45,7.48420726]
[1768410857493,6.77986056,147.5,147.45,7.48420726]
[1768410857699,9.25722374,147.5,147.45,7.48420726]
[1768410858804,2.47736318,147.49,147.43,6.78288001]
[1768410859106,2.47736318,147.45,147.41,7.48589769]
[1768410859301,2.47736318,147.45,147.41,0.70238885]
[1768410859494,14.83736318,147.45,147.4,6.78409089]
[1768410859677,14.83736318,147.45,147.41,6.78377582]
[1768410859880,14.83736318,147.45,147.41,7.48616467]
[1768410860081,12.36,147.45,147.41,7.48616467]
[1768410860500,12.33000001,147.45,147.41,7.48616467]
[1768410860700,14.80736319,147.45,147.41,7.48616467]
[1768410861810,2.47736318,147.44,147.41,0.70238885]
[1768410862498,2.47736318,147.44,147.41,7.48618859]
[1768410862701,14.80736319,147.45,147.41,7.48618859]
[1768410863201,12.33000001,147.45,147.42,0.65641288]
[1768410863404,22.97508605,147.45,147.42,0.65641288]
[1768410863582,22.97517083,147.45,147.41,7.44008505]
[1768410863788,3.86310756,147.44,147.4,7.44036457]
[1768410865613,19.11206327,147.45,147.4,7.44036457]
[1768410865790,3.86310756,147.44,147.4,7.44036457]
[1768410865991,19.11206327,147.45,147.4,7.44036457]
[1768410866210,3.86310756,147.44,147.4,7.44036457]
[1768410867710,10.64558761,147.44,147.4,0.65641288]
[1768410868002,3.86310756,147.43,147.4,0.65641288]
[1768410868208,3.86310756,147.43,147.4,7.44067052]
[1768410868407,3.86310756,147.43,147.4,0.65641288]
[1768410868803,3.86310756,147.43,147.4,7.44066143]
[1768410870617,3.86310756,147.44,147.4,7.44066143]
[1768410871213,19.11216079,147.45,147.41,0.65641288]
[1768410871214,12.36,147.45,147.41,0.65641288]
[1768410872296,12.36,147.45,147.42,7.43975299]
[1768410872688,12.36,147.45,147.42,0.65641288]
[1768410872900,23.00508276,147.45,147.42,0.65641288]
[1768410873301,3.86310756,147.44,147.4,7.44047358]
[1768410873702,3.86310756,147.44,147.4,6.7840607]
[1768410873997,3.86310756,147.43,147.39,7.44097988]
[1768410875217,10.64613994,147.43,147.39,7.44097988]
[1768410875592,3.86310756,147.43,147.39,0.65641288]
[1768410875795,3.86310756,147.41,147.37,7.44175561]
[1768410876214,3.86310756,147.4,147.36,7.44237065]
[1768410876516,3.86310756,147.4,147.37,6.78562859]
[1768410876822,16.22310756,147.42,147.38,6.78516825]
[1768410877712,23.00650337,147.42,147.38,6.78516825]
[1768410879105,16.22310756,147.42,147.38,0.65641288]
[1768410879305,23.00651811,147.42,147.38,0.65641288]
[1768410880217,23.00651811,147.42,147.37,0.65641288]
[1768410880823,3.86310756,147.41,147.37,0.65641288]
[1768410881007,3.86310756,147.41,147.35,0.65641288]
[1768410881214,3.86310756,147.4,147.35,0.65641288]
[1768410881409,16.24310756,147.39,147.35,0.65641288]
[1768410881922,12.38,147.39,147.35,7.44295241]
[1768410882921,12.38,147.39,147.36,0.65641288]
[1768410884005,12.38,147.39,147.37,0.65641288]
[1768410884634,23.02708754,147.41,147.37,0.65641288]
[1768410885101,12.38,147.4,147.36,7.44242466]
[1768410885332,19.16427053,147.4,147.36,7.44242466]
[1768410885810,23.02737809,147.4,147.36,7.44242466]
[1768410886024,23.02737809,147.4,147.33,16.96810703]
[1768410886025,3.86310756,147.37,147.33,0.65641288]
[1768410886228,16.24310756,147.36,147.32,0.65641288]
[1768410886812,3.86310756,147.37,147.32,0.65641288]
[1768410887016,12.38,147.39,147.35,0.65641288]
[1768410887222,6.78427053,147.4,147.36,0.65641288]
[1768410887526,12.38,147.4,147.36,0.65641288]
[1768410888217,12.38,147.4,147.36,4.51952044]
[1768410888527,19.16450286,147.4,147.36,4.51952044]
[1768410888825,19.16450286,147.4,147.36,0.65641288]
[1768410889127,19.16450286,147.4,147.36,4.51952044]
[1768410889424,19.16450286,147.4,147.36,0.65641288]
[1768410890435,3.86310756,147.39,147.34,0.69297334]